Workbook

Sheet Instructions

Sheet Meta data_sheet
A1: Ambient Monitoring Station | B1: Details | D1: Ambient Monitoring Results | E1: Details
A2: Location | B2: Will-gai | D2: PM2.5 monitoring start (dd/mm/yyyy hh:mm) | E2: 2019-05-01
A3: Easting | B3: =VLOOKUP($B$2,'Meta data_lookup'!$A$2:$D$5,2,FALSE) -> 231804 | D3: PM2.5 monitoring end | E3: 2019-06-01
A4: Northing | B4: =VLOOKUP($B$2,'Meta data_lookup'!$A$2:$D$5,3,FALSE) -> 6596392 | D4: PM2.5 monitoring period (h) | E4: =(E3-E2)*24 -> 744
A5: Site elevation (m) | B5: =VLOOKUP($B$2,'Meta data_lookup'!$A$2:$D$5,4,FALSE) -> 294 | D5: Number of valid PM2.5 results | E5: =COUNTIF('Raw data_sheet'!G2:G745,"Valid") -> 527
A6: Description of surrounding land use | B6: Agriculture/Mining | D6: Proportion of valid PM2.5 results (%) | E6: =E5/E4 -> 0.7083333333
A7: Typical sources impacting on the site | B7: Agriculture | D7: PM10 monitoring start (dd/mm/yyyy hh:mm) | E7: 2019-05-01
A8: Site compliance with AS/NZS 3580.1.1:2007 | B8: Yes | D8: PM10 monitoring end | E8: 2019-06-01
A9: PM2.5 method compliance with AS/NZS 3580.9.13:2013 | B9: Yes | D9: PM10 monitoring period (h) | E9: =(E8-E7)*24 -> 744
A10: PM2.5 instrument make | B10: Thermo Scientific | D10: Number of valid PM10 results | E10: =COUNTIF('Raw data_sheet'!J2:J745,"Valid") -> 542
A11: PM2.5 instrument model | B11: 1405DF | D11: Proportion of valid PM10 results (%) | E11: =E10/E9 -> 0.7284946237
A12: PM2.5 instrument intake height (m) | B12: 3.5
A13: PM10 method compliance with AS 3580.9.8-2008 | B13: No*
A14: PM10 instrument make | B14: Thermo Scientific
A15: PM10 instrument model | B15: 1405DF
A16: PM10 instrument intake height (m) | B16: 3.5
A17: *The 1405DF TEOM used at this site measures PM10 indirectly rather than directly. The unit does however meet the intent of AS 3580.9.8-2008, and this method has been accredited by the USEPA. It is considered scientifically robust and is used extensively throughout NSW with EPA's knowledge and informal acceptance.

Sheet Meta data_lookup
A1: Location | B1: Easting | C1: Northing | D1: Site elevation (m)
A2: Maules Creek | B2: 225302 | C2: 6623037 | D2: ND
A3: Breeza | B3: 237993 | C3: 6542606 | D3: ND
A4: Will-gai | B4: 231804 | C4: 6596392 | D4: 294
A5: Werris Creek | B5: 276783 | C5: 6528734 | D5: 362

Sheet Raw data_sheet
A1: Year | B1: Month | C1: Day | D1: Hour | E1: Date and time | F1: PM2.5_hourly | G1: PM2.5_Data_Status | H1: PM2.5_24hr_rolling_average | I1: PM10_hourly | J1: PM10_Data_Status | K1: PM10_24hr_rolling_average | L1: Cause of data invalidity, if applicable | M1: Detailed comments | N1: PM2.5_hourly_valid_plot | O1: PM2.5_24hr_rolling_ave_valid_plot | P1: PM10_hourly_valid_plot | Q1: PM10_24hr_rolling_ave_valid_plot | R1: PM10_hourly_valid_plot_series | S1: PM10_24hr_rolling_average_valid_plot_series | T1: PM2.5_hourly_valid_plot_series | U1: PM2.5_24hr_rolling_average_valid_plot_series
A2: 2019 | B2: 5 | C2: 1 | D2: 0 | E2: =DATE(A2,B2,C2)+TIME(D2,0,0) -> 43586 | F2: =NA() ->  | G2: Invalid | H2: =NA() ->  | I2: =NA() ->  | J2: Invalid | K2: =NA() ->  | M2: Technical fault rendered data unreliable | N2: =IF(G2="Valid", F2, NA()) ->  | O2: =IF(G2="Valid", H2, NA()) ->  | P2: =IF(J2="Valid", I2, NA()) ->  | Q2: =IF(J2="Valid", K2, NA()) -> 
A3: =A2 -> 2019 | B3: =B2 -> 5 | C3: =C2 -> 1 | D3: =IF(D2=23,0,D2+1) -> 1 | E3: =E2+0.0416666666666666 -> 43586.04167 | F3: =NA() ->  | G3: Invalid | H3: =NA() ->  | I3: =NA() ->  | J3: Invalid | K3: =NA() ->  | M3: Technical fault rendered data unreliable
A4: =A3 -> 2019 | B4: =B3 -> 5 | C4: 1 | D4: =IF(D3=23,0,D3+1) -> 2 | E4: =E3+0.0416666666666666 -> 43586.08333 | F4: =NA() ->  | G4: Invalid | H4: =NA() ->  | I4: =NA() ->  | J4: Invalid | K4: =NA() ->  | M4: Technical fault rendered data unreliable
A5: 2019 | B5: 5 | C5: 1 | D5: 3 | E5: 43586.125 | F5: =NA() ->  | G5: Invalid | H5: =NA() ->  | I5: =NA() ->  | J5: Invalid | K5: =NA() ->  | M5: Technical fault rendered data unreliable
A6: 2019 | B6: 5 | C6: 1 | D6: 4 | E6: 43586.16667 | F6: =NA() ->  | G6: Invalid | H6: =NA() ->  | I6: =NA() ->  | J6: Invalid | K6: =NA() ->  | M6: Technical fault rendered data unreliable
A7: 2019 | B7: 5 | C7: 1 | D7: 5 | E7: 43586.20833 | F7: =NA() ->  | G7: Invalid | H7: =NA() ->  | I7: =NA() ->  | J7: Invalid | K7: =NA() ->  | M7: Technical fault rendered data unreliable
A8: 2019 | B8: 5 | C8: 1 | D8: 6 | E8: 43586.25 | F8: =NA() ->  | G8: Invalid | H8: =NA() ->  | I8: =NA() ->  | J8: Invalid | K8: =NA() ->  | M8: Technical fault rendered data unreliable
A9: 2019 | B9: 5 | C9: 1 | D9: 7 | E9: 43586.29167 | F9: =NA() ->  | G9: Invalid | H9: =NA() ->  | I9: =NA() ->  | J9: Invalid | K9: =NA() ->  | M9: Technical fault rendered data unreliable
A10: 2019 | B10: 5 | C10: 1 | D10: 8 | E10: 43586.33333 | F10: =NA() ->  | G10: Invalid | H10: =NA() ->  | I10: =NA() ->  | J10: Invalid | K10: =NA() ->  | M10: Technical fault rendered data unreliable
A11: 2019 | B11: 5 | C11: 1 | D11: 9 | E11: 43586.375 | F11: =NA() ->  | G11: Invalid | H11: =NA() ->  | I11: =NA() ->  | J11: Invalid | K11: =NA() ->  | M11: Technical fault rendered data unreliable
A12: 2019 | B12: 5 | C12: 1 | D12: 10 | E12: 43586.41667 | F12: =NA() ->  | G12: Invalid | H12: =NA() ->  | I12: =NA() ->  | J12: Invalid | K12: =NA() ->  | M12: Technical fault rendered data unreliable
A13: 2019 | B13: 5 | C13: 1 | D13: 11 | E13: 43586.45833 | F13: =NA() ->  | G13: Invalid | H13: =NA() ->  | I13: =NA() ->  | J13: Invalid | K13: =NA() ->  | M13: Technical fault rendered data unreliable
A14: 2019 | B14: 5 | C14: 1 | D14: 12 | E14: 43586.5 | F14: =NA() ->  | G14: Invalid | H14: =NA() ->  | I14: =NA() ->  | J14: Invalid | K14: =NA() ->  | M14: Technical fault rendered data unreliable
A15: 2019 | B15: 5 | C15: 1 | D15: 13 | E15: 43586.54167 | F15: =NA() ->  | G15: Invalid | H15: =NA() ->  | I15: =NA() ->  | J15: Invalid | K15: =NA() ->  | M15: Technical fault rendered data unreliable
A16: 2019 | B16: 5 | C16: 1 | D16: 14 | E16: 43586.58333 | F16: =NA() ->  | G16: Invalid | H16: =NA() ->  | I16: =NA() ->  | J16: Invalid | K16: =NA() ->  | M16: Technical fault rendered data unreliable
A17: 2019 | B17: 5 | C17: 1 | D17: 15 | E17: 43586.625 | F17: =NA() ->  | G17: Invalid | H17: =NA() ->  | I17: =NA() ->  | J17: Invalid | K17: =NA() ->  | M17: Technical fault rendered data unreliable
A18: 2019 | B18: 5 | C18: 1 | D18: 16 | E18: 43586.66667 | F18: =NA() ->  | G18: Invalid | H18: =NA() ->  | I18: =NA() ->  | J18: Invalid | K18: =NA() ->  | M18: Technical fault rendered data unreliable
A19: 2019 | B19: 5 | C19: 1 | D19: 17 | E19: 43586.70833 | F19: =NA() ->  | G19: Invalid | H19: =NA() ->  | I19: =NA() ->  | J19: Invalid | K19: =NA() ->  | M19: Technical fault rendered data unreliable
A20: 2019 | B20: 5 | C20: 1 | D20: 18 | E20: 43586.75 | F20: =NA() ->  | G20: Invalid | H20: =NA() ->  | I20: =NA() ->  | J20: Invalid | K20: =NA() ->  | M20: Technical fault rendered data unreliable
A21: 2019 | B21: 5 | C21: 1 | D21: 19 | E21: 43586.79167 | F21: =NA() ->  | G21: Invalid | H21: =NA() ->  | I21: =NA() ->  | J21: Invalid | K21: =NA() ->  | M21: Technical fault rendered data unreliable
A22: 2019 | B22: 5 | C22: 1 | D22: 20 | E22: 43586.83333 | F22: =NA() ->  | G22: Invalid | H22: =NA() ->  | I22: =NA() ->  | J22: Invalid | K22: =NA() ->  | M22: Technical fault rendered data unreliable
A23: 2019 | B23: 5 | C23: 1 | D23: 21 | E23: 43586.875 | F23: =NA() ->  | G23: Invalid | H23: =NA() ->  | I23: =NA() ->  | J23: Invalid | K23: =NA() ->  | M23: Technical fault rendered data unreliable
A24: 2019 | B24: 5 | C24: 1 | D24: 22 | E24: 43586.91667 | F24: =NA() ->  | G24: Invalid | H24: =NA() ->  | I24: =NA() ->  | J24: Invalid | K24: =NA() ->  | M24: Technical fault rendered data unreliable
A25: 2019 | B25: =B24 -> 5 | C25: =C24 -> 1 | D25: 23 | E25: 43586.95833 | F25: =NA() ->  | G25: Invalid | H25: =NA() ->  | I25: =NA() ->  | J25: Invalid | K25: =NA() ->  | M25: Technical fault rendered data unreliable
A26: 2019 | B26: =B25 -> 5 | C26: =C2+1 -> 2 | D26: 0 | E26: 43587 | F26: =NA() ->  | G26: Invalid | H26: =NA() ->  | I26: =NA() ->  | J26: Invalid | K26: =NA() ->  | M26: Technical fault rendered data unreliable
A27: 2019 | B27: =B26 -> 5 | C27: =C3+1 -> 2 | D27: 1 | E27: 43587.04167 | F27: =NA() ->  | G27: Invalid | H27: =NA() ->  | I27: =NA() ->  | J27: Invalid | K27: =NA() ->  | M27: Technical fault rendered data unreliable
A28: 2019 | B28: 5 | C28: 2 | D28: 2 | E28: 43587.08333 | F28: =NA() ->  | G28: Invalid | H28: =NA() ->  | I28: =NA() ->  | J28: Invalid | K28: =NA() ->  | M28: Technical fault rendered data unreliable
A29: 2019 | B29: 5 | C29: 2 | D29: 3 | E29: 43587.125 | F29: =NA() ->  | G29: Invalid | H29: =NA() ->  | I29: =NA() ->  | J29: Invalid | K29: =NA() ->  | M29: Technical fault rendered data unreliable
A30: 2019 | B30: 5 | C30: 2 | D30: 4 | E30: 43587.16667 | F30: =NA() ->  | G30: Invalid | H30: =NA() ->  | I30: =NA() ->  | J30: Invalid | K30: =NA() ->  | M30: Technical fault rendered data unreliable
A31: 2019 | B31: 5 | C31: 2 | D31: 5 | E31: 43587.20833 | F31: =NA() ->  | G31: Invalid | H31: =NA() ->  | I31: =NA() ->  | J31: Invalid | K31: =NA() ->  | M31: Technical fault rendered data unreliable
A32: 2019 | B32: 5 | C32: 2 | D32: 6 | E32: 43587.25 | F32: =NA() ->  | G32: Invalid | H32: =NA() ->  | I32: =NA() ->  | J32: Invalid | K32: =NA() ->  | M32: Technical fault rendered data unreliable
A33: 2019 | B33: 5 | C33: 2 | D33: 7 | E33: 43587.29167 | F33: =NA() ->  | G33: Invalid | H33: =NA() ->  | I33: =NA() ->  | J33: Invalid | K33: =NA() ->  | M33: Technical fault rendered data unreliable
A34: 2019 | B34: 5 | C34: 2 | D34: 8 | E34: 43587.33333 | F34: =NA() ->  | G34: Invalid | H34: =NA() ->  | I34: =NA() ->  | J34: Invalid | K34: =NA() ->  | M34: Technical fault rendered data unreliable
A35: 2019 | B35: 5 | C35: 2 | D35: 9 | E35: 43587.375 | F35: =NA() ->  | G35: Invalid | H35: =NA() ->  | I35: =NA() ->  | J35: Invalid | K35: =NA() ->  | M35: Technical fault rendered data unreliable
A36: 2019 | B36: 5 | C36: 2 | D36: 10 | E36: 43587.41667 | F36: =NA() ->  | G36: Invalid | H36: =NA() ->  | I36: =NA() ->  | J36: Invalid | K36: =NA() ->  | M36: Technical fault rendered data unreliable
A37: 2019 | B37: 5 | C37: 2 | D37: 11 | E37: 43587.45833 | F37: =NA() ->  | G37: Invalid | H37: =NA() ->  | I37: =NA() ->  | J37: Invalid | K37: =NA() ->  | M37: Technical fault rendered data unreliable
A38: 2019 | B38: 5 | C38: 2 | D38: 12 | E38: 43587.5 | F38: =NA() ->  | G38: Invalid | H38: =NA() ->  | I38: =NA() ->  | J38: Invalid | K38: =NA() ->  | M38: Technical fault rendered data unreliable
A39: 2019 | B39: 5 | C39: 2 | D39: 13 | E39: 43587.54167 | F39: =NA() ->  | G39: Invalid | H39: =NA() ->  | I39: =NA() ->  | J39: Invalid | K39: =NA() ->  | M39: Technical fault rendered data unreliable
A40: 2019 | B40: 5 | C40: 2 | D40: 14 | E40: 43587.58333 | F40: =NA() ->  | G40: Invalid | H40: =NA() ->  | I40: =NA() ->  | J40: Invalid | K40: =NA() ->  | M40: Technical fault rendered data unreliable
A41: 2019 | B41: 5 | C41: 2 | D41: 15 | E41: 43587.625 | F41: =NA() ->  | G41: Invalid | H41: =NA() ->  | I41: =NA() ->  | J41: Invalid | K41: =NA() ->  | M41: Technical fault rendered data unreliable
A42: 2019 | B42: 5 | C42: 2 | D42: 16 | E42: 43587.66667 | F42: =NA() ->  | G42: Invalid | H42: =NA() ->  | I42: =NA() ->  | J42: Invalid | K42: =NA() ->  | M42: Technical fault rendered data unreliable
A43: 2019 | B43: 5 | C43: 2 | D43: 17 | E43: 43587.70833 | F43: =NA() ->  | G43: Invalid | H43: =NA() ->  | I43: =NA() ->  | J43: Invalid | K43: =NA() ->  | M43: Technical fault rendered data unreliable
A44: 2019 | B44: 5 | C44: 2 | D44: 18 | E44: 43587.75 | F44: =NA() ->  | G44: Invalid | H44: =NA() ->  | I44: =NA() ->  | J44: Invalid | K44: =NA() ->  | M44: Technical fault rendered data unreliable
A45: 2019 | B45: 5 | C45: 2 | D45: 19 | E45: 43587.79167 | F45: =NA() ->  | G45: Invalid | H45: =NA() ->  | I45: =NA() ->  | J45: Invalid | K45: =NA() ->  | M45: Technical fault rendered data unreliable
A46: 2019 | B46: 5 | C46: 2 | D46: 20 | E46: 43587.83333 | F46: =NA() ->  | G46: Invalid | H46: =NA() ->  | I46: =NA() ->  | J46: Invalid | K46: =NA() ->  | M46: Technical fault rendered data unreliable
A47: 2019 | B47: 5 | C47: 2 | D47: 21 | E47: 43587.875 | F47: =NA() ->  | G47: Invalid | H47: =NA() ->  | I47: =NA() ->  | J47: Invalid | K47: =NA() ->  | M47: Technical fault rendered data unreliable
A48: 2019 | B48: 5 | C48: 2 | D48: 22 | E48: 43587.91667 | F48: =NA() ->  | G48: Invalid | H48: =NA() ->  | I48: =NA() ->  | J48: Invalid | K48: =NA() ->  | M48: Technical fault rendered data unreliable
A49: 2019 | B49: 5 | C49: 2 | D49: 23 | E49: 43587.95833 | F49: =NA() ->  | G49: Invalid | H49: =NA() ->  | I49: =NA() ->  | J49: Invalid | K49: =NA() ->  | M49: Technical fault rendered data unreliable
A50: 2019 | B50: 5 | C50: 3 | D50: 0 | E50: 43588 | F50: =NA() ->  | G50: Invalid | H50: =NA() ->  | I50: =NA() ->  | J50: Invalid | K50: =NA() ->  | M50: Technical fault rendered data unreliable
A51: 2019 | B51: 5 | C51: 3 | D51: 1 | E51: 43588.04167 | F51: =NA() ->  | G51: Invalid | H51: =NA() ->  | I51: =NA() ->  | J51: Invalid | K51: =NA() ->  | M51: Technical fault rendered data unreliable
A52: 2019 | B52: 5 | C52: 3 | D52: 2 | E52: 43588.08333 | F52: =NA() ->  | G52: Invalid | H52: =NA() ->  | I52: =NA() ->  | J52: Invalid | K52: =NA() ->  | M52: Technical fault rendered data unreliable
A53: 2019 | B53: 5 | C53: 3 | D53: 3 | E53: 43588.125 | F53: =NA() ->  | G53: Invalid | H53: =NA() ->  | I53: =NA() ->  | J53: Invalid | K53: =NA() ->  | M53: Technical fault rendered data unreliable
A54: 2019 | B54: 5 | C54: 3 | D54: 4 | E54: 43588.16667 | F54: =NA() ->  | G54: Invalid | H54: =NA() ->  | I54: =NA() ->  | J54: Invalid | K54: =NA() ->  | M54: Technical fault rendered data unreliable
A55: 2019 | B55: 5 | C55: 3 | D55: 5 | E55: 43588.20833 | F55: =NA() ->  | G55: Invalid | H55: =NA() ->  | I55: =NA() ->  | J55: Invalid | K55: =NA() ->  | M55: Technical fault rendered data unreliable
A56: 2019 | B56: 5 | C56: 3 | D56: 6 | E56: 43588.25 | F56: =NA() ->  | G56: Invalid | H56: =NA() ->  | I56: =NA() ->  | J56: Invalid | K56: =NA() ->  | M56: Technical fault rendered data unreliable
A57: 2019 | B57: 5 | C57: 3 | D57: 7 | E57: 43588.29167 | F57: =NA() ->  | G57: Invalid | H57: =NA() ->  | I57: =NA() ->  | J57: Invalid | K57: =NA() ->  | M57: Technical fault rendered data unreliable
A58: 2019 | B58: 5 | C58: 3 | D58: 8 | E58: 43588.33333 | F58: =NA() ->  | G58: Invalid | H58: =NA() ->  | I58: =NA() ->  | J58: Invalid | K58: =NA() ->  | M58: Technical fault rendered data unreliable
A59: 2019 | B59: 5 | C59: 3 | D59: 9 | E59: 43588.375 | F59: =NA() ->  | G59: Invalid | H59: =NA() ->  | I59: =NA() ->  | J59: Invalid | K59: =NA() ->  | M59: Technical fault rendered data unreliable
A60: 2019 | B60: 5 | C60: 3 | D60: 10 | E60: 43588.41667 | F60: =NA() ->  | G60: Invalid | H60: =NA() ->  | I60: =NA() ->  | J60: Invalid | K60: =NA() ->  | M60: Technical fault rendered data unreliable
A61: 2019 | B61: 5 | C61: 3 | D61: 11 | E61: 43588.45833 | F61: =NA() ->  | G61: Invalid | H61: =NA() ->  | I61: =NA() ->  | J61: Invalid | K61: =NA() ->  | M61: Technical fault rendered data unreliable
A62: 2019 | B62: 5 | C62: 3 | D62: 12 | E62: 43588.5 | F62: =NA() ->  | G62: Invalid | H62: =NA() ->  | I62: =NA() ->  | J62: Invalid | K62: =NA() ->  | M62: Technical fault rendered data unreliable
A63: 2019 | B63: 5 | C63: 3 | D63: 13 | E63: 43588.54167 | F63: =NA() ->  | G63: Invalid | H63: =NA() ->  | I63: =NA() ->  | J63: Invalid | K63: =NA() ->  | M63: Technical fault rendered data unreliable
A64: 2019 | B64: 5 | C64: 3 | D64: 14 | E64: 43588.58333 | F64: =NA() ->  | G64: Invalid | H64: =NA() ->  | I64: =NA() ->  | J64: Invalid | K64: =NA() ->  | M64: Technical fault rendered data unreliable
A65: 2019 | B65: 5 | C65: 3 | D65: 15 | E65: 43588.625 | F65: =NA() ->  | G65: Invalid | H65: =NA() ->  | I65: =NA() ->  | J65: Invalid | K65: =NA() ->  | M65: Technical fault rendered data unreliable
A66: 2019 | B66: 5 | C66: 3 | D66: 16 | E66: 43588.66667 | F66: =NA() ->  | G66: Invalid | H66: =NA() ->  | I66: =NA() ->  | J66: Invalid | K66: =NA() ->  | M66: Technical fault rendered data unreliable | N66: =IF(G66="Valid", F66, NA()) ->  | O66: =IF(G66="Valid", H66, NA()) ->  | P66: =IF(J66="Valid", I66, NA()) ->  | Q66: =IF(J66="Valid", K66, NA()) -> 
A67: 2019 | B67: 5 | C67: 3 | D67: 17 | E67: 43588.70833 | F67: =NA() ->  | G67: Invalid | H67: =NA() ->  | I67: =NA() ->  | J67: Invalid | K67: =NA() ->  | M67: Technical fault rendered data unreliable
A68: =A67 -> 2019 | B68: 5 | C68: 3 | D68: =IF(D67=23,0,D67+1) -> 18 | E68: =E67+0.0416666666666666 -> 43588.75 | F68: =NA() ->  | G68: Invalid | H68: =NA() ->  | I68: =NA() ->  | J68: Invalid | K68: =NA() ->  | M68: Technical fault rendered data unreliable
A69: 2019 | B69: 5 | C69: 3 | D69: 19 | E69: 43588.79167 | F69: =NA() ->  | G69: Invalid | H69: =NA() ->  | I69: =NA() ->  | J69: Invalid | K69: =NA() ->  | M69: Technical fault rendered data unreliable
A70: 2019 | B70: 5 | C70: 3 | D70: 20 | E70: 43588.83333 | F70: =NA() ->  | G70: Invalid | H70: =NA() ->  | I70: =NA() ->  | J70: Invalid | K70: =NA() ->  | M70: Technical fault rendered data unreliable
A71: 2019 | B71: 5 | C71: 3 | D71: 21 | E71: 43588.875 | F71: =NA() ->  | G71: Invalid | H71: =NA() ->  | I71: =NA() ->  | J71: Invalid | K71: =NA() ->  | M71: Technical fault rendered data unreliable
A72: 2019 | B72: 5 | C72: 3 | D72: 22 | E72: 43588.91667 | F72: =NA() ->  | G72: Invalid | H72: =NA() ->  | I72: =NA() ->  | J72: Invalid | K72: =NA() ->  | M72: Technical fault rendered data unreliable
A73: 2019 | B73: 5 | C73: 3 | D73: 23 | E73: 43588.95833 | F73: =NA() ->  | G73: Invalid | H73: =NA() ->  | I73: =NA() ->  | J73: Invalid | K73: =NA() ->  | M73: Technical fault rendered data unreliable
A74: 2019 | B74: 5 | C74: 4 | D74: 0 | E74: 43589 | F74: =NA() ->  | G74: Invalid | H74: =NA() ->  | I74: =NA() ->  | J74: Invalid | K74: =NA() ->  | M74: Technical fault rendered data unreliable
A75: 2019 | B75: 5 | C75: 4 | D75: 1 | E75: 43589.04167 | F75: =NA() ->  | G75: Invalid | H75: =NA() ->  | I75: =NA() ->  | J75: Invalid | K75: =NA() ->  | M75: Technical fault rendered data unreliable
A76: 2019 | B76: 5 | C76: 4 | D76: 2 | E76: 43589.08333 | F76: =NA() ->  | G76: Invalid | H76: =NA() ->  | I76: =NA() ->  | J76: Invalid | K76: =NA() ->  | M76: Technical fault rendered data unreliable
A77: 2019 | B77: 5 | C77: 4 | D77: 3 | E77: 43589.125 | F77: =NA() ->  | G77: Invalid | H77: =NA() ->  | I77: =NA() ->  | J77: Invalid | K77: =NA() ->  | M77: Technical fault rendered data unreliable
A78: 2019 | B78: 5 | C78: 4 | D78: 4 | E78: 43589.16667 | F78: =NA() ->  | G78: Invalid | H78: =NA() ->  | I78: =NA() ->  | J78: Invalid | K78: =NA() ->  | M78: Technical fault rendered data unreliable
A79: 2019 | B79: 5 | C79: 4 | D79: 5 | E79: 43589.20833 | F79: =NA() ->  | G79: Invalid | H79: =NA() ->  | I79: =NA() ->  | J79: Invalid | K79: =NA() ->  | M79: Technical fault rendered data unreliable
A80: 2019 | B80: 5 | C80: 4 | D80: 6 | E80: 43589.25 | F80: =NA() ->  | G80: Invalid | H80: =NA() ->  | I80: =NA() ->  | J80: Invalid | K80: =NA() ->  | M80: Technical fault rendered data unreliable
A81: 2019 | B81: 5 | C81: 4 | D81: 7 | E81: 43589.29167 | F81: =NA() ->  | G81: Invalid | H81: =NA() ->  | I81: =NA() ->  | J81: Invalid | K81: =NA() ->  | M81: Technical fault rendered data unreliable
A82: 2019 | B82: 5 | C82: 4 | D82: 8 | E82: 43589.33333 | F82: =NA() ->  | G82: Invalid | H82: =NA() ->  | I82: =NA() ->  | J82: Invalid | K82: =NA() ->  | M82: Technical fault rendered data unreliable
A83: 2019 | B83: 5 | C83: 4 | D83: 9 | E83: 43589.375 | F83: =NA() ->  | G83: Invalid | H83: =NA() ->  | I83: =NA() ->  | J83: Invalid | K83: =NA() ->  | M83: Technical fault rendered data unreliable
A84: 2019 | B84: 5 | C84: 4 | D84: 10 | E84: 43589.41667 | F84: =NA() ->  | G84: Invalid | H84: =NA() ->  | I84: =NA() ->  | J84: Invalid | K84: =NA() ->  | M84: Technical fault rendered data unreliable
A85: 2019 | B85: 5 | C85: 4 | D85: 11 | E85: 43589.45833 | F85: =NA() ->  | G85: Invalid | H85: =NA() ->  | I85: =NA() ->  | J85: Invalid | K85: =NA() ->  | M85: Technical fault rendered data unreliable
A86: 2019 | B86: 5 | C86: 4 | D86: 12 | E86: 43589.5 | F86: =NA() ->  | G86: Invalid | H86: =NA() ->  | I86: =NA() ->  | J86: Invalid | K86: =NA() ->  | M86: Technical fault rendered data unreliable
A87: 2019 | B87: 5 | C87: 4 | D87: 13 | E87: 43589.54167 | F87: =NA() ->  | G87: Invalid | H87: =NA() ->  | I87: =NA() ->  | J87: Invalid | K87: =NA() ->  | M87: Technical fault rendered data unreliable
A88: 2019 | B88: 5 | C88: 4 | D88: 14 | E88: 43589.58333 | F88: =NA() ->  | G88: Invalid | H88: =NA() ->  | I88: =NA() ->  | J88: Invalid | K88: =NA() ->  | M88: Technical fault rendered data unreliable
A89: 2019 | B89: 5 | C89: 4 | D89: 15 | E89: 43589.625 | F89: =NA() ->  | G89: Invalid | H89: =NA() ->  | I89: =NA() ->  | J89: Invalid | K89: =NA() ->  | M89: Technical fault rendered data unreliable
A90: 2019 | B90: 5 | C90: 4 | D90: 16 | E90: 43589.66667 | F90: =NA() ->  | G90: Invalid | H90: =NA() ->  | I90: =NA() ->  | J90: Invalid | K90: =NA() ->  | M90: Technical fault rendered data unreliable
A91: 2019 | B91: =B90 -> 5 | C91: =C67+1 -> 4 | D91: 17 | E91: 43589.70833 | F91: =NA() ->  | G91: Invalid | H91: =NA() ->  | I91: =NA() ->  | J91: Invalid | K91: =NA() ->  | M91: Technical fault rendered data unreliable
A92: 2019 | B92: 5 | C92: 4 | D92: 18 | E92: 43589.75 | F92: =NA() ->  | G92: Invalid | H92: =NA() ->  | I92: =NA() ->  | J92: Invalid | K92: =NA() ->  | M92: Technical fault rendered data unreliable
A93: 2019 | B93: 5 | C93: 4 | D93: 19 | E93: 43589.79167 | F93: =NA() ->  | G93: Invalid | H93: =NA() ->  | I93: =NA() ->  | J93: Invalid | K93: =NA() ->  | M93: Technical fault rendered data unreliable
A94: 2019 | B94: 5 | C94: 4 | D94: 20 | E94: 43589.83333 | F94: =NA() ->  | G94: Invalid | H94: =NA() ->  | I94: =NA() ->  | J94: Invalid | K94: =NA() ->  | M94: Technical fault rendered data unreliable
A95: 2019 | B95: 5 | C95: 4 | D95: 21 | E95: 43589.875 | F95: =NA() ->  | G95: Invalid | H95: =NA() ->  | I95: =NA() ->  | J95: Invalid | K95: =NA() ->  | M95: Technical fault rendered data unreliable
A96: 2019 | B96: 5 | C96: 4 | D96: 22 | E96: 43589.91667 | F96: =NA() ->  | G96: Invalid | H96: =NA() ->  | I96: =NA() ->  | J96: Invalid | K96: =NA() ->  | M96: Technical fault rendered data unreliable
A97: 2019 | B97: 5 | C97: 4 | D97: 23 | E97: 43589.95833 | F97: =NA() ->  | G97: Invalid | H97: =NA() ->  | I97: =NA() ->  | J97: Invalid | K97: =NA() ->  | M97: Technical fault rendered data unreliable
A98: 2019 | B98: 5 | C98: 5 | D98: 0 | E98: 43590 | F98: =NA() ->  | G98: Invalid | H98: =NA() ->  | I98: =NA() ->  | J98: Invalid | K98: =NA() ->  | M98: Technical fault rendered data unreliable
A99: 2019 | B99: 5 | C99: 5 | D99: 1 | E99: 43590.04167 | F99: =NA() ->  | G99: Invalid | H99: =NA() ->  | I99: =NA() ->  | J99: Invalid | K99: =NA() ->  | M99: Technical fault rendered data unreliable
A100: 2019 | B100: 5 | C100: 5 | D100: 2 | E100: 43590.08333 | F100: =NA() ->  | G100: Invalid | H100: =NA() ->  | I100: =NA() ->  | J100: Invalid | K100: =NA() ->  | M100: Technical fault rendered data unreliable
A101: 2019 | B101: 5 | C101: 5 | D101: 3 | E101: 43590.125 | F101: =NA() ->  | G101: Invalid | H101: =NA() ->  | I101: =NA() ->  | J101: Invalid | K101: =NA() ->  | M101: Technical fault rendered data unreliable
A102: 2019 | B102: 5 | C102: 5 | D102: 4 | E102: 43590.16667 | F102: =NA() ->  | G102: Invalid | H102: =NA() ->  | I102: =NA() ->  | J102: Invalid | K102: =NA() ->  | M102: Technical fault rendered data unreliable
A103: 2019 | B103: 5 | C103: 5 | D103: 5 | E103: 43590.20833 | F103: =NA() ->  | G103: Invalid | H103: =NA() ->  | I103: =NA() ->  | J103: Invalid | K103: =NA() ->  | M103: Technical fault rendered data unreliable
A104: 2019 | B104: 5 | C104: 5 | D104: 6 | E104: 43590.25 | F104: =NA() ->  | G104: Invalid | H104: =NA() ->  | I104: =NA() ->  | J104: Invalid | K104: =NA() ->  | M104: Technical fault rendered data unreliable
A105: 2019 | B105: 5 | C105: 5 | D105: 7 | E105: 43590.29167 | F105: =NA() ->  | G105: Invalid | H105: =NA() ->  | I105: =NA() ->  | J105: Invalid | K105: =NA() ->  | M105: Technical fault rendered data unreliable
A106: 2019 | B106: 5 | C106: 5 | D106: 8 | E106: 43590.33333 | F106: =NA() ->  | G106: Invalid | H106: =NA() ->  | I106: =NA() ->  | J106: Invalid | K106: =NA() ->  | M106: Technical fault rendered data unreliable
A107: 2019 | B107: 5 | C107: 5 | D107: 9 | E107: 43590.375 | F107: =NA() ->  | G107: Invalid | H107: =NA() ->  | I107: =NA() ->  | J107: Invalid | K107: =NA() ->  | M107: Technical fault rendered data unreliable
A108: 2019 | B108: 5 | C108: 5 | D108: 10 | E108: 43590.41667 | F108: =NA() ->  | G108: Invalid | H108: =NA() ->  | I108: =NA() ->  | J108: Invalid | K108: =NA() ->  | M108: Technical fault rendered data unreliable
A109: 2019 | B109: 5 | C109: 5 | D109: 11 | E109: 43590.45833 | F109: =NA() ->  | G109: Invalid | H109: =NA() ->  | I109: =NA() ->  | J109: Invalid | K109: =NA() ->  | M109: Technical fault rendered data unreliable
A110: 2019 | B110: 5 | C110: 5 | D110: 12 | E110: 43590.5 | F110: =NA() ->  | G110: Invalid | H110: =NA() ->  | I110: =NA() ->  | J110: Invalid | K110: =NA() ->  | M110: Technical fault rendered data unreliable
A111: 2019 | B111: 5 | C111: 5 | D111: 13 | E111: 43590.54167 | F111: =NA() ->  | G111: Invalid | H111: =NA() ->  | I111: =NA() ->  | J111: Invalid | K111: =NA() ->  | M111: Technical fault rendered data unreliable
A112: 2019 | B112: 5 | C112: 5 | D112: 14 | E112: 43590.58333 | F112: =NA() ->  | G112: Invalid | H112: =NA() ->  | I112: =NA() ->  | J112: Invalid | K112: =NA() ->  | M112: Technical fault rendered data unreliable
A113: 2019 | B113: 5 | C113: 5 | D113: 15 | E113: 43590.625 | F113: =NA() ->  | G113: Invalid | H113: =NA() ->  | I113: =NA() ->  | J113: Invalid | K113: =NA() ->  | M113: Technical fault rendered data unreliable
A114: 2019 | B114: 5 | C114: 5 | D114: 16 | E114: 43590.66667 | F114: =NA() ->  | G114: Invalid | H114: =NA() ->  | I114: =NA() ->  | J114: Invalid | K114: =NA() ->  | M114: Technical fault rendered data unreliable
A115: 2019 | B115: 5 | C115: 5 | D115: 17 | E115: 43590.70833 | F115: =NA() ->  | G115: Invalid | H115: =NA() ->  | I115: =NA() ->  | J115: Invalid | K115: =NA() ->  | M115: Technical fault rendered data unreliable
A116: 2019 | B116: 5 | C116: 5 | D116: 18 | E116: 43590.75 | F116: =NA() ->  | G116: Invalid | H116: =NA() ->  | I116: =NA() ->  | J116: Invalid | K116: =NA() ->  | M116: Technical fault rendered data unreliable
A117: 2019 | B117: 5 | C117: 5 | D117: 19 | E117: 43590.79167 | F117: =NA() ->  | G117: Invalid | H117: =NA() ->  | I117: =NA() ->  | J117: Invalid | K117: =NA() ->  | M117: Technical fault rendered data unreliable
A118: 2019 | B118: 5 | C118: 5 | D118: 20 | E118: 43590.83333 | F118: =NA() ->  | G118: Invalid | H118: =NA() ->  | I118: =NA() ->  | J118: Invalid | K118: =NA() ->  | M118: Technical fault rendered data unreliable
A119: 2019 | B119: 5 | C119: 5 | D119: 21 | E119: 43590.875 | F119: =NA() ->  | G119: Invalid | H119: =NA() ->  | I119: =NA() ->  | J119: Invalid | K119: =NA() ->  | M119: Technical fault rendered data unreliable
A120: 2019 | B120: 5 | C120: 5 | D120: 22 | E120: 43590.91667 | F120: =NA() ->  | G120: Invalid | H120: =NA() ->  | I120: =NA() ->  | J120: Invalid | K120: =NA() ->  | M120: Technical fault rendered data unreliable
A121: 2019 | B121: 5 | C121: 5 | D121: 23 | E121: 43590.95833 | F121: =NA() ->  | G121: Invalid | H121: =NA() ->  | I121: =NA() ->  | J121: Invalid | K121: =NA() ->  | M121: Technical fault rendered data unreliable
A122: 2019 | B122: 5 | C122: 6 | D122: 0 | E122: 43591 | F122: =NA() ->  | G122: Invalid | H122: =NA() ->  | I122: =NA() ->  | J122: Invalid | K122: =NA() ->  | M122: Technical fault rendered data unreliable
A123: 2019 | B123: 5 | C123: 6 | D123: 1 | E123: 43591.04167 | F123: =NA() ->  | G123: Invalid | H123: =NA() ->  | I123: =NA() ->  | J123: Invalid | K123: =NA() ->  | M123: Technical fault rendered data unreliable
A124: 2019 | B124: 5 | C124: 6 | D124: 2 | E124: 43591.08333 | F124: =NA() ->  | G124: Invalid | H124: =NA() ->  | I124: =NA() ->  | J124: Invalid | K124: =NA() ->  | M124: Technical fault rendered data unreliable
A125: 2019 | B125: 5 | C125: 6 | D125: 3 | E125: 43591.125 | F125: =NA() ->  | G125: Invalid | H125: =NA() ->  | I125: =NA() ->  | J125: Invalid | K125: =NA() ->  | M125: Technical fault rendered data unreliable
A126: 2019 | B126: 5 | C126: 6 | D126: 4 | E126: 43591.16667 | F126: =NA() ->  | G126: Invalid | H126: =NA() ->  | I126: =NA() ->  | J126: Invalid | K126: =NA() ->  | M126: Technical fault rendered data unreliable
A127: 2019 | B127: 5 | C127: 6 | D127: 5 | E127: 43591.20833 | F127: =NA() ->  | G127: Invalid | H127: =NA() ->  | I127: =NA() ->  | J127: Invalid | K127: =NA() ->  | M127: Technical fault rendered data unreliable
A128: 2019 | B128: 5 | C128: 6 | D128: 6 | E128: 43591.25 | F128: =NA() ->  | G128: Invalid | H128: =NA() ->  | I128: =NA() ->  | J128: Invalid | K128: =NA() ->  | M128: Technical fault rendered data unreliable
A129: 2019 | B129: 5 | C129: 6 | D129: 7 | E129: 43591.29167 | F129: =NA() ->  | G129: Invalid | H129: =NA() ->  | I129: =NA() ->  | J129: Invalid | K129: =NA() ->  | M129: Technical fault rendered data unreliable
A130: 2019 | B130: 5 | C130: 6 | D130: 8 | E130: 43591.33333 | F130: =NA() ->  | G130: Invalid | H130: =NA() ->  | I130: =NA() ->  | J130: Invalid | K130: =NA() ->  | M130: Technical fault rendered data unreliable | N130: =IF(G130="Valid", F130, NA()) ->  | O130: =IF(G130="Valid", H130, NA()) ->  | P130: =IF(J130="Valid", I130, NA()) ->  | Q130: =IF(J130="Valid", K130, NA()) -> 
A131: 2019 | B131: 5 | C131: 6 | D131: 9 | E131: 43591.375 | F131: =NA() ->  | G131: Invalid | H131: =NA() ->  | I131: =NA() ->  | J131: Invalid | K131: =NA() ->  | M131: Technical fault rendered data unreliable
A132: =A131 -> 2019 | B132: 5 | C132: 6 | D132: =IF(D131=23,0,D131+1) -> 10 | E132: =E131+0.0416666666666666 -> 43591.41667 | F132: =NA() ->  | G132: Invalid | H132: =NA() ->  | I132: =NA() ->  | J132: Invalid | K132: =NA() ->  | M132: Technical fault rendered data unreliable
A133: 2019 | B133: 5 | C133: 6 | D133: 11 | E133: 43591.45833 | F133: =NA() ->  | G133: Invalid | H133: =NA() ->  | I133: =NA() ->  | J133: Invalid | K133: =NA() ->  | M133: Technical fault rendered data unreliable
A134: 2019 | B134: 5 | C134: 6 | D134: 12 | E134: 43591.5 | F134: =NA() ->  | G134: Invalid | H134: =NA() ->  | I134: =NA() ->  | J134: Invalid | K134: =NA() ->  | M134: Technical fault rendered data unreliable
A135: 2019 | B135: 5 | C135: 6 | D135: 13 | E135: 43591.54167 | F135: =NA() ->  | G135: Invalid | H135: =NA() ->  | I135: =NA() ->  | J135: Invalid | K135: =NA() ->  | M135: Technical fault rendered data unreliable
A136: 2019 | B136: 5 | C136: 6 | D136: 14 | E136: 43591.58333 | F136: =NA() ->  | G136: Invalid | H136: =NA() ->  | I136: =NA() ->  | J136: Invalid | K136: =NA() ->  | M136: Technical fault rendered data unreliable
A137: 2019 | B137: 5 | C137: 6 | D137: 15 | E137: 43591.625 | F137: =NA() ->  | G137: Invalid | H137: =NA() ->  | I137: =NA() ->  | J137: Invalid | K137: =NA() ->  | M137: Technical fault rendered data unreliable
A138: 2019 | B138: 5 | C138: 6 | D138: 16 | E138: 43591.66667 | F138: =NA() ->  | G138: Invalid | H138: =NA() ->  | I138: =NA() ->  | J138: Invalid | K138: =NA() ->  | M138: Technical fault rendered data unreliable
A139: 2019 | B139: 5 | C139: 6 | D139: 17 | E139: 43591.70833 | F139: =NA() ->  | G139: Invalid | H139: =NA() ->  | I139: =NA() ->  | J139: Invalid | K139: =NA() ->  | M139: Technical fault rendered data unreliable
A140: 2019 | B140: 5 | C140: 6 | D140: 18 | E140: 43591.75 | F140: =NA() ->  | G140: Invalid | H140: =NA() ->  | I140: =NA() ->  | J140: Invalid | K140: =NA() ->  | M140: Technical fault rendered data unreliable
A141: 2019 | B141: 5 | C141: 6 | D141: 19 | E141: 43591.79167 | F141: =NA() ->  | G141: Invalid | H141: =NA() ->  | I141: =NA() ->  | J141: Invalid | K141: =NA() ->  | M141: Technical fault rendered data unreliable
A142: 2019 | B142: 5 | C142: 6 | D142: 20 | E142: 43591.83333 | F142: =NA() ->  | G142: Invalid | H142: =NA() ->  | I142: =NA() ->  | J142: Invalid | K142: =NA() ->  | M142: Technical fault rendered data unreliable
A143: 2019 | B143: 5 | C143: 6 | D143: 21 | E143: 43591.875 | F143: =NA() ->  | G143: Invalid | H143: =NA() ->  | I143: =NA() ->  | J143: Invalid | K143: =NA() ->  | M143: Technical fault rendered data unreliable
A144: 2019 | B144: 5 | C144: 6 | D144: 22 | E144: 43591.91667 | F144: =NA() ->  | G144: Invalid | H144: =NA() ->  | I144: =NA() ->  | J144: Invalid | K144: =NA() ->  | M144: Technical fault rendered data unreliable
A145: 2019 | B145: 5 | C145: 6 | D145: 23 | E145: 43591.95833 | F145: =NA() ->  | G145: Invalid | H145: =NA() ->  | I145: =NA() ->  | J145: Invalid | K145: =NA() ->  | M145: Technical fault rendered data unreliable
A146: 2019 | B146: 5 | C146: 7 | D146: 0 | E146: 43592 | F146: =NA() ->  | G146: Invalid | H146: =NA() ->  | I146: =NA() ->  | J146: Invalid | K146: =NA() ->  | M146: Technical fault rendered data unreliable
A147: 2019 | B147: 5 | C147: 7 | D147: 1 | E147: 43592.04167 | F147: =NA() ->  | G147: Invalid | H147: =NA() ->  | I147: =NA() ->  | J147: Invalid | K147: =NA() ->  | M147: Technical fault rendered data unreliable
A148: 2019 | B148: 5 | C148: 7 | D148: 2 | E148: 43592.08333 | F148: =NA() ->  | G148: Invalid | H148: =NA() ->  | I148: =NA() ->  | J148: Invalid | K148: =NA() ->  | M148: Technical fault rendered data unreliable
A149: 2019 | B149: 5 | C149: 7 | D149: 3 | E149: 43592.125 | F149: =NA() ->  | G149: Invalid | H149: =NA() ->  | I149: =NA() ->  | J149: Invalid | K149: =NA() ->  | M149: Technical fault rendered data unreliable
A150: 2019 | B150: 5 | C150: 7 | D150: 4 | E150: 43592.16667 | F150: =NA() ->  | G150: Invalid | H150: =NA() ->  | I150: =NA() ->  | J150: Invalid | K150: =NA() ->  | M150: Technical fault rendered data unreliable
A151: 2019 | B151: 5 | C151: 7 | D151: 5 | E151: 43592.20833 | F151: =NA() ->  | G151: Invalid | H151: =NA() ->  | I151: =NA() ->  | J151: Invalid | K151: =NA() ->  | M151: Technical fault rendered data unreliable
A152: 2019 | B152: 5 | C152: 7 | D152: 6 | E152: 43592.25 | F152: =NA() ->  | G152: Invalid | H152: =NA() ->  | I152: =NA() ->  | J152: Invalid | K152: =NA() ->  | M152: Technical fault rendered data unreliable
A153: 2019 | B153: 5 | C153: 7 | D153: 7 | E153: 43592.29167 | F153: =NA() ->  | G153: Invalid | H153: =NA() ->  | I153: =NA() ->  | J153: Invalid | K153: =NA() ->  | M153: Technical fault rendered data unreliable
A154: 2019 | B154: 5 | C154: 7 | D154: 8 | E154: 43592.33333 | F154: =NA() ->  | G154: Invalid | H154: =NA() ->  | I154: =NA() ->  | J154: Invalid | K154: =NA() ->  | M154: Technical fault rendered data unreliable
A155: 2019 | B155: =B154 -> 5 | C155: =C131+1 -> 7 | D155: 9 | E155: 43592.375 | F155: =NA() ->  | G155: Invalid | H155: =NA() ->  | I155: =NA() ->  | J155: Invalid | K155: =NA() ->  | M155: Technical fault rendered data unreliable
A156: 2019 | B156: 5 | C156: 7 | D156: 10 | E156: 43592.41667 | F156: =NA() ->  | G156: Invalid | H156: =NA() ->  | I156: =NA() ->  | J156: Invalid | K156: =NA() ->  | M156: Technical fault rendered data unreliable
A157: 2019 | B157: 5 | C157: 7 | D157: 11 | E157: 43592.45833 | F157: =NA() ->  | G157: Invalid | H157: =NA() ->  | I157: =NA() ->  | J157: Invalid | K157: =NA() ->  | M157: Technical fault rendered data unreliable
A158: 2019 | B158: 5 | C158: 7 | D158: 12 | E158: 43592.5 | F158: =NA() ->  | G158: Invalid | H158: =NA() ->  | I158: =NA() ->  | J158: Invalid | K158: =NA() ->  | M158: Technical fault rendered data unreliable
A159: 2019 | B159: 5 | C159: 7 | D159: 13 | E159: 43592.54167 | F159: =NA() ->  | G159: Invalid | H159: =NA() ->  | I159: =NA() ->  | J159: Invalid | K159: =NA() ->  | M159: Technical fault rendered data unreliable
A160: 2019 | B160: 5 | C160: 7 | D160: 14 | E160: 43592.58333 | F160: =NA() ->  | G160: Invalid | H160: =NA() ->  | I160: =NA() ->  | J160: Invalid | K160: =NA() ->  | M160: Technical fault rendered data unreliable
A161: 2019 | B161: 5 | C161: 7 | D161: 15 | E161: 43592.625 | F161: =NA() ->  | G161: Invalid | H161: =NA() ->  | I161: =NA() ->  | J161: Invalid | K161: =NA() ->  | M161: Technical fault rendered data unreliable
A162: 2019 | B162: 5 | C162: 7 | D162: 16 | E162: 43592.66667 | F162: =NA() ->  | G162: Invalid | H162: =NA() ->  | I162: =NA() ->  | J162: Invalid | K162: =NA() ->  | M162: Technical fault rendered data unreliable
A163: 2019 | B163: 5 | C163: 7 | D163: 17 | E163: 43592.70833 | F163: =NA() ->  | G163: Invalid | H163: =NA() ->  | I163: =NA() ->  | J163: Invalid | K163: =NA() ->  | M163: Technical fault rendered data unreliable
A164: 2019 | B164: 5 | C164: 7 | D164: 18 | E164: 43592.75 | F164: =NA() ->  | G164: Invalid | H164: =NA() ->  | I164: =NA() ->  | J164: Invalid | K164: =NA() ->  | M164: Technical fault rendered data unreliable
A165: 2019 | B165: 5 | C165: 7 | D165: 19 | E165: 43592.79167 | F165: =NA() ->  | G165: Invalid | H165: =NA() ->  | I165: =NA() ->  | J165: Invalid | K165: =NA() ->  | M165: Technical fault rendered data unreliable
A166: 2019 | B166: 5 | C166: 7 | D166: 20 | E166: 43592.83333 | F166: =NA() ->  | G166: Invalid | H166: =NA() ->  | I166: =NA() ->  | J166: Invalid | K166: =NA() ->  | M166: Technical fault rendered data unreliable
A167: 2019 | B167: 5 | C167: 7 | D167: 21 | E167: 43592.875 | F167: =NA() ->  | G167: Invalid | H167: =NA() ->  | I167: =NA() ->  | J167: Invalid | K167: =NA() ->  | M167: Technical fault rendered data unreliable
A168: 2019 | B168: 5 | C168: 7 | D168: 22 | E168: 43592.91667 | F168: =NA() ->  | G168: Invalid | H168: =NA() ->  | I168: =NA() ->  | J168: Invalid | K168: =NA() ->  | M168: Technical fault rendered data unreliable
A169: 2019 | B169: 5 | C169: 7 | D169: 23 | E169: 43592.95833 | F169: =NA() ->  | G169: Invalid | H169: =NA() ->  | I169: =NA() ->  | J169: Invalid | K169: =NA() ->  | M169: Technical fault rendered data unreliable
A170: 2019 | B170: 5 | C170: 8 | D170: 0 | E170: 43593 | F170: =NA() ->  | G170: Invalid | H170: =NA() ->  | I170: =NA() ->  | J170: Invalid | K170: =NA() ->  | M170: Technical fault rendered data unreliable
A171: 2019 | B171: 5 | C171: 8 | D171: 1 | E171: 43593.04167 | F171: =NA() ->  | G171: Invalid | H171: =NA() ->  | I171: =NA() ->  | J171: Invalid | K171: =NA() ->  | M171: Technical fault rendered data unreliable
A172: 2019 | B172: 5 | C172: 8 | D172: 2 | E172: 43593.08333 | F172: =NA() ->  | G172: Invalid | H172: =NA() ->  | I172: =NA() ->  | J172: Invalid | K172: =NA() ->  | M172: Technical fault rendered data unreliable
A173: 2019 | B173: 5 | C173: 8 | D173: 3 | E173: 43593.125 | F173: =NA() ->  | G173: Invalid | H173: =NA() ->  | I173: =NA() ->  | J173: Invalid | K173: =NA() ->  | M173: Technical fault rendered data unreliable
A174: 2019 | B174: 5 | C174: 8 | D174: 4 | E174: 43593.16667 | F174: =NA() ->  | G174: Invalid | H174: =NA() ->  | I174: =NA() ->  | J174: Invalid | K174: =NA() ->  | M174: Technical fault rendered data unreliable
A175: 2019 | B175: 5 | C175: 8 | D175: 5 | E175: 43593.20833 | F175: =NA() ->  | G175: Invalid | H175: =NA() ->  | I175: =NA() ->  | J175: Invalid | K175: =NA() ->  | M175: Technical fault rendered data unreliable
A176: 2019 | B176: 5 | C176: 8 | D176: 6 | E176: 43593.25 | F176: =NA() ->  | G176: Invalid | H176: =NA() ->  | I176: =NA() ->  | J176: Invalid | K176: =NA() ->  | M176: Technical fault rendered data unreliable
A177: 2019 | B177: 5 | C177: 8 | D177: 7 | E177: 43593.29167 | F177: =NA() ->  | G177: Invalid | H177: =NA() ->  | I177: =NA() ->  | J177: Invalid | K177: =NA() ->  | M177: Technical fault rendered data unreliable
A178: 2019 | B178: 5 | C178: 8 | D178: 8 | E178: 43593.33333 | F178: =NA() ->  | G178: Invalid | H178: =NA() ->  | I178: =NA() ->  | J178: Invalid | K178: =NA() ->  | M178: Technical fault rendered data unreliable
A179: 2019 | B179: 5 | C179: 8 | D179: 9 | E179: 43593.375 | F179: =NA() ->  | G179: Invalid | H179: =NA() ->  | I179: =NA() ->  | J179: Invalid | K179: =NA() ->  | M179: Technical fault rendered data unreliable
A180: 2019 | B180: 5 | C180: 8 | D180: 10 | E180: 43593.41667 | F180: =NA() ->  | G180: Invalid | H180: =NA() ->  | I180: =NA() ->  | J180: Invalid | K180: =NA() ->  | M180: Technical fault rendered data unreliable
A181: 2019 | B181: 5 | C181: 8 | D181: 11 | E181: 43593.45833 | F181: =NA() ->  | G181: Invalid | H181: =NA() ->  | I181: =NA() ->  | J181: Invalid | K181: =NA() ->  | M181: Technical fault rendered data unreliable
A182: 2019 | B182: 5 | C182: 8 | D182: 12 | E182: 43593.5 | F182: =NA() ->  | G182: Invalid | H182: =NA() ->  | I182: =NA() ->  | J182: Invalid | K182: =NA() ->  | M182: Technical fault rendered data unreliable
A183: 2019 | B183: 5 | C183: 8 | D183: 13 | E183: 43593.54167 | F183: =NA() ->  | G183: Invalid | H183: =NA() ->  | I183: =NA() ->  | J183: Invalid | K183: =NA() ->  | M183: Technical fault rendered data unreliable
A184: 2019 | B184: 5 | C184: 8 | D184: 14 | E184: 43593.58333 | F184: =NA() ->  | G184: Invalid | H184: =NA() ->  | I184: =NA() ->  | J184: Invalid | K184: =NA() ->  | M184: Technical fault rendered data unreliable
A185: 2019 | B185: 5 | C185: 8 | D185: 15 | E185: 43593.625 | F185: =NA() ->  | G185: Invalid | H185: =NA() ->  | I185: =NA() ->  | J185: Invalid | K185: =NA() ->  | M185: Technical fault rendered data unreliable
A186: 2019 | B186: 5 | C186: 8 | D186: 16 | E186: 43593.66667 | F186: =NA() ->  | G186: Invalid | H186: =NA() ->  | I186: =NA() ->  | J186: Invalid | K186: =NA() ->  | M186: Technical fault rendered data unreliable
A187: 2019 | B187: 5 | C187: 8 | D187: 17 | E187: 43593.70833 | F187: =NA() ->  | G187: Invalid | H187: =NA() ->  | I187: =NA() ->  | J187: Invalid | K187: =NA() ->  | M187: Technical fault rendered data unreliable
A188: 2019 | B188: 5 | C188: 8 | D188: 18 | E188: 43593.75 | F188: =NA() ->  | G188: Invalid | H188: =NA() ->  | I188: =NA() ->  | J188: Invalid | K188: =NA() ->  | M188: Technical fault rendered data unreliable
A189: 2019 | B189: 5 | C189: 8 | D189: 19 | E189: 43593.79167 | F189: -1 | G189: Valid | H189: 1 | I189: 14.5 | J189: Valid | K189: 10.7 | N189: -1 | O189: 1 | P189: 14.5 | Q189: 10.7 | R189: 14.5 | S189: 10.7 | T189: -1 | U189: 1
A190: 2019 | B190: 5 | C190: 8 | D190: 20 | E190: 43593.83333 | F190: 1.4 | G190: Valid | H190: 1 | I190: 18.6 | J190: Valid | K190: 11 | N190: 1.4 | O190: 1 | P190: 18.6 | Q190: 11 | R190: 18.6 | S190: 11 | T190: 1.4 | U190: 1
A191: 2019 | B191: 5 | C191: 8 | D191: 21 | E191: 43593.875 | F191: 1.4 | G191: Valid | H191: 1 | I191: 18.2 | J191: Valid | K191: 11.2 | N191: 1.4 | O191: 1 | P191: 18.2 | Q191: 11.2 | R191: 18.2 | S191: 11.2 | T191: 1.4 | U191: 1
A192: 2019 | B192: 5 | C192: 8 | D192: 22 | E192: 43593.91667 | F192: 2.5 | G192: Valid | H192: 1 | I192: 19.1 | J192: Valid | K192: 11.5 | N192: 2.5 | O192: 1 | P192: 19.1 | Q192: 11.5 | R192: 19.1 | S192: 11.5 | T192: 2.5 | U192: 1
A193: 2019 | B193: 5 | C193: 8 | D193: 23 | E193: 43593.95833 | F193: -0.1 | G193: Valid | H193: 1 | I193: 11.9 | J193: Valid | K193: 11.9 | N193: -0.1 | O193: 1 | P193: 11.9 | Q193: 11.9 | R193: 11.9 | S193: 11.9 | T193: -0.1 | U193: 1
A194: 2019 | B194: 5 | C194: 9 | D194: 0 | E194: 43594 | F194: -0.6 | G194: Valid | H194: 0.9 | I194: 10.1 | J194: Valid | K194: 11.7 | N194: =IF(G194="Valid", F194, NA()) -> -0.6 | O194: =IF(G194="Valid", H194, NA()) -> 0.9 | P194: =IF(J194="Valid", I194, NA()) -> 10.1 | Q194: =IF(J194="Valid", K194, NA()) -> 11.7 | R194: 10.1 | S194: 11.7 | T194: -0.6 | U194: 0.9
A195: 2019 | B195: 5 | C195: 9 | D195: 1 | E195: 43594.04167 | F195: -2.2 | G195: Valid | H195: 0.7 | I195: 12.8 | J195: Valid | K195: 12 | N195: -2.2 | O195: 0.7 | P195: 12.8 | Q195: 12 | R195: 12.8 | S195: 12 | T195: -2.2 | U195: 0.7
A196: =A195 -> 2019 | B196: 5 | C196: 9 | D196: =IF(D195=23,0,D195+1) -> 2 | E196: =E195+0.0416666666666666 -> 43594.08333 | F196: 5.1 | G196: Valid | H196: 0.9 | I196: 12.3 | J196: Valid | K196: 12.7 | N196: 5.1 | O196: 0.9 | P196: 12.3 | Q196: 12.7 | R196: 12.3 | S196: 12.7 | T196: 5.1 | U196: 0.9
A197: 2019 | B197: 5 | C197: 9 | D197: 3 | E197: 43594.125 | F197: 4.2 | G197: Valid | H197: 1.2 | I197: 16 | J197: Valid | K197: 13.4 | N197: 4.2 | O197: 1.2 | P197: 16 | Q197: 13.4 | R197: 16 | S197: 13.4 | T197: 4.2 | U197: 1.2
A198: 2019 | B198: 5 | C198: 9 | D198: 4 | E198: 43594.16667 | F198: 3.2 | G198: Valid | H198: 1.3 | I198: 12.3 | J198: Valid | K198: 13.6 | N198: 3.2 | O198: 1.3 | P198: 12.3 | Q198: 13.6 | R198: 12.3 | S198: 13.6 | T198: 3.2 | U198: 1.3
A199: 2019 | B199: 5 | C199: 9 | D199: 5 | E199: 43594.20833 | F199: 0.3 | G199: Valid | H199: 1.4 | I199: 9.6 | J199: Valid | K199: 13.8 | N199: 0.3 | O199: 1.4 | P199: 9.6 | Q199: 13.8 | R199: 9.6 | S199: 13.8 | T199: 0.3 | U199: 1.4
A200: 2019 | B200: 5 | C200: 9 | D200: 6 | E200: 43594.25 | F200: 0.8 | G200: Valid | H200: 1.5 | I200: 10.4 | J200: Valid | K200: 13 | N200: 0.8 | O200: 1.5 | P200: 10.4 | Q200: 13 | R200: 10.4 | S200: 13 | T200: 0.8 | U200: 1.5
... 545 more rows

Sheet Raw data_format
A1: Parameter | B1: Format | C1: Comment | D1: Units of measure | E1: Minimum | F1: Maximum
A2: Year | B2: yyyy | C2: 4 integer format | D2: Not applicable | E2: 2015 | F2: Until reporting ceases
A3: Month | B3: mm | C3: 2 integer format | D3: Not applicable | E3: 1 | F3: 12
A4: Day | B4: dd | C4: 2 integer format | D4: Not applicable | E4: 1 | F4: 31
A5: Hour | B5: hh | C5: 2 integer format | D5: Not applicable | E5: 0 | F5: 23
A6: PM10 | B6: 0 | C6: 1 decimal place resolution | D6: µg/m3 | E6: Negative | F6: Instrument specific
A7: PM2.5 | B7: 0 | C7: 2 decimal place resolution | D7: µg/m3 | E7: Negative | F7: Instrument specific
A8: Status | B8: Text | C8: 7 character format | D8: Not applicable | E8: Valid | F8: Invalid
